Cogmind - Beta 13 @@@ ROGUE MODE // 2024.04.21 @ 20:56:03 Player: osman sinnoks Result: Destroyed by G-47 Trooper with Particle Gun Performance ------------- Evolutions (2) 1000 Regions Visited (4) 800 Robots Destroyed (52) 260 Value Destroyed (886) 886 Prototype IDs (1) 20 Alien Tech Used (0) 0 Bonus (0) 0 TOTAL SCORE: 2966 Bonus ------- None Cogmind --------- Core Integrity 0/550 Matter 280/300 Energy 100/100 System Corruption 0% Temperature Cool (9) Movement Core (100) Ox1 Location -8/Materials Parts ------- > --- POWER (1) -------- (None) > --- PROPULSION (3) --- (None) > --- UTILITY (4) ------ Salvage Targeting Computer Light Armor Plating > --- WEAPON (3) ------- Scythe > --- INVENTORY (5) ---- Ion Engine Cooling System Large Storage Unit Datajack Peak State ------------ > --- POWER ------------ Light Nuclear Core > --- PROPULSION ------- Flight Unit Improved Flight Unit > --- UTILITY ---------- Salvage Targeting Computer Melee Analysis Suite Melee Analysis Suite > --- WEAPON ----------- Flak Cannon Flak Cannon Mining Claw > --- INVENTORY -------- Ion Engine Cooling System Large Storage Unit Seismic Detector Grenade Launcher [Rating: 22] Favorites ----------- Power Ion Engine Engine Ion Engine Power Core Light Nuclear Core Propulsion Flight Unit Wheel Compact Wheel Flight Unit Flight Unit Utility Melee Analysis Suite Device Seismic Detector Storage Large Storage Unit Processor Melee Analysis Suite Protection Light Armor Plating Weapon Flak Cannon Energy Gun Pulse Rifle Ballistic Cannon Flak Cannon Launcher Mini Grenade Launcher Impact Weapon Heavy Hammer Slashing Weapon Mining Claw Build | -11 -10 -9 -9 -8 ------- Run | Yrd Mat Mat Min Mat Slots Evolved 4 | . . 2 . 2 Power . | . . . . . Propulsion 1 | . . . . 1 Utility 2 | . . 1 . 1 Weapon 1 | . . 1 . . Parts Attached 39 | 7 3 19 . 10 Power 5 | 1 . 2 . 2 Engine 3 | 1 . 1 . 1 Core 2 | . . 1 . 1 Reactor . | . . . . . Propulsion 9 | 2 . 5 . 2 Treads . | . . . . . Leg . | . . . . . Wheel 4 | 2 . . . 2 Hover . | . . . . . Flight 5 | . . 5 . . Utility 12 | 2 1 6 . 3 Device 3 | 1 . . . 2 Storage 3 | 1 1 1 . . Processor 4 | . . 4 . . Hackware . | . . . . . Protection 2 | . . 1 . 1 Artifact . | . . . . . Weapon 13 | 2 2 6 . 3 Energy Gun 4 | 2 . 2 . . Energy Cannon . | . . . . . Ballistic Gun . | . . . . . Ballistic Cannon 2 | . . 2 . . Launcher 2 | . 2 . . . Special Weapon . | . . . . . Impact Weapon 3 | . . 1 . 2 Slashing Weapon 2 | . . 1 . 1 Piercing Weapon . | . . . . . Special Melee Weapon . | . . . . . Unidentified Prototypes 1 | . . 1 . . Parts Lost 19 | . . 6 5 8 Power 3 | . . 1 1 1 Propulsion 6 | . . 2 2 2 Utility 7 | . . 3 1 3 Weapon 3 | . . . 1 2 Highest Loss Streak 7 | . . 2 5 7 To Critical Strikes . | . . . . . Average Slot Usage (%) 86 | . 100 93 92 48 Engine 7 | . 14 4 10 5 Core 3 | . . 5 . 1 Wheel 8 | . 28 4 . 10 Flight 11 | . . 15 19 . Device 3 | . 14 1 . 4 Storage 3 | . 14 2 . . Processor 18 | . . 21 32 13 Protection 1 | . . 2 . . Energy Gun 7 | . 16 4 18 . Ballistic Cannon 8 | . . 15 . . Launcher 2 | . 11 2 . . Impact Weapon 3 | . . . 11 11 Slashing Weapon 5 | . . 10 . . Naked Turns . | . . . . . Heaviest Build 34 | 15 31 34 16 13 Greatest Support 32 | 32 32 32 8 20 Greatest Overweight (x) 4 | 1 . 4 2 2 Average Overweight (x) . | . . 1 . . Largest Inventory Capacity 15 | 8 15 15 5 5 Average Capacity 7 | 7 14 6 5 5 Most Carried 10 | 2 7 10 5 5 Average Carried 4 | . 3 5 5 3 Final Capacity 15 | 8 15 5 5 5 Final Carried 7 | 1 7 5 5 4 Class Distribution -------------------- 94% | Mutant 3% | Scavenger-Mutant Dominant Class ---------------- Mutant | -10/Materials Mutant | -9/Materials Mutant | -9/Mines Mutant | -8/Materials Resources | -11 -10 -9 -9 -8 ----------- Run | Yrd Mat Mat Min Mat Matter Collected 801 | 254 42 430 . 75 Remotely . | . . . . . Salvage Created 1713 | 164 170 526 434 419 Parts 91 | 15 18 35 8 15 Haulers Intercepted 2 | . . 2 . . Recyclers Shooed 6 | 1 . . 5 . Parts Field Recycled . | . . . . . Retrieved Matter . | . . . . . Parts Self-Destructed . | . . . . . Prevented . | . . . . . Kills | -11 -10 -9 -9 -8 ------- Run | Yrd Mat Mat Min Mat Combat Hostiles Destroyed 24 | . 4 12 . 8 Melee 7 | . . 2 . 5 Guns 4 | . 1 3 . . Cannons 7 | . . 7 . . AOE 3 | . 3 . . . Classes Destroyed 11 | 2 5 2 1 1 Worker 5 | . 1 1 2 1 Builder 4 | . . . 3 1 Tunneler 4 | 4 . . . . Hauler 2 | . . 2 . . Recycler 9 | 1 1 2 4 1 Mechanic 1 | . . . . 1 Operator 1 | . 1 . . . Watcher 2 | . 2 . . . Swarmer 11 | . 3 5 . 3 Grunt 9 | . 1 4 . 4 Sentry 4 | . . 3 . 1 Best Kill Streak 6 | 4 3 6 5 3 Combat Bots Only 6 | . 3 6 . 3 Max Kills in Single Turn 3 | 2 3 2 1 1 Gunslinging 1 | . . 1 . . Exploded 2 | . 2 . . . Melee 1 | . . 1 . 1 Uniques/NPCs Destroyed . | . . . . . Combat | -11 -10 -9 -9 -8 -------- Run | Yrd Mat Mat Min Mat Hostile Shots Fired 211 | . 6 81 15 109 Missed 55 | . 4 23 2 26 Damage Taken 2319 | . 70 690 434 1125 Core 906 | . 39 133 169 565 Absorbed by Shields . | . . . . . Regen/Repaired (Parts) 77 | . . . . 77 Core Remaining (%) 69 | 100 84 . 24 . Volleys Fired 49 | 9 16 24 . . Largest 2 | 2 2 2 . . Hottest 126 | 100 80 126 . . Shots Fired 87 | 18 22 47 . . Gun 50 | 18 16 16 . . Cannon 26 | . . 26 . . Launcher 11 | . 6 5 . . Special . | . . . . . Kinetic 26 | . . 26 . . Thermal 50 | 18 16 16 . . Explosive 11 | . 6 5 . . Electromagnetic . | . . . . . Robot Hit Streak 14 | 8 4 14 . . Robot Miss Streak 9 | 2 3 9 . . Penetration Max . | . . . . . Secondary Targets 2 | . . 2 . . Max Gunslinging Chain 1 | . . 1 . . Shots Hit Robots 112 | 12 10 48 12 30 Core Hits 65 | 6 14 36 3 6 Critical Kills 1 | . . . . 1 Critical Parts Destroyed 6 | . . . 3 3 Critical Strikes 11 | 2 1 . 3 5 Burn 3 | 2 1 . . . Smash 7 | . . . 3 4 Sever 1 | . . . . 1 Melee Attacks 69 | . . 19 12 38 Impact 46 | . . . 12 34 Slashing 23 | . . 19 . 4 Piercing . | . . . . . Sneak Attacks 19 | . . 4 10 5 Combat Hostiles . | . . . . . Follow-up Attacks 3 | . . . . 3 Damage Inflicted 3743 | 187 441 984 866 1265 Guns 473 | 187 114 172 . . Cannons 376 | . . 376 . . Explosions 415 | . 327 88 . . Melee 2479 | . . 348 866 1265 Ramming . | . . . . . Kinetic 376 | . . 376 . . Thermal 473 | 187 114 172 . . Explosive 347 | . 259 88 . . Electromagnetic 68 | . 68 . . . Impact 2002 | . . . 866 1136 Slashing 477 | . . 348 . 129 Piercing . | . . . . . Highest Corruption . | . . . . . Average Corruption . | . . . . . Corruption Purged . | . . . . . Corruption Blocked . | . . . . . Overload Shots . | . . . . . Overflow Damage 666 | . . . 368 298 Projectiles . | . . . . . Explosions . | . . . . . Melee 666 | . . . 368 298 Knockbacks 22 | . . 13 3 6 Impact 9 | . . . 3 6 Kinetic 9 | . . 9 . . Secondary 4 | . . 4 . . Self-Inflicted Damage 108 | . 49 59 . . Shots 6 | . 2 4 . . Rammed . | . . . . . Targets Rammed . | . . . . . Kicked . | . . . . . Crushed . | . . . . . Highest Temperature 184 | 117 110 184 . . Average Temperature 58 | 56 47 63 . . Received Heat Transfer 660 | . 12 87 30 531 Siege Activations . | . . . . . Robots Corrupted . | . . . . . Combat Hostiles . | . . . . . Parts Fried 19 | . . . 12 7 Impact Corruptions 22 | . . . 13 9 Robots Melted . | . . . . . Combat Hostiles . | . . . . . Parts Melted 2 | 2 . . . . Heat Transferred 1517 | 703 407 407 . . Parts Sabotaged . | . . . . . Parts Stolen . | . . . . . Parts Stripped . | . . . . . Power Chain Reactions . | . . . . . Alert | -11 -10 -9 -9 -8 ------- Run | Yrd Mat Mat Min Mat Peak Influence 322 | 25 263 322 100 204 Initial 110 | . 16 110 45 13 Average 123 | 6 110 169 67 76 Maximum Alert Level 1 | . 1 1 . 1 Low Security (%) 84 | 100 74 77 100 97 Level 1 15 | . 25 22 . 2 Level 2 . | . . . . . Level 3 . | . . . . . Level 4 . | . . . . . Level 5 . | . . . . . High Security . | . . . . . Max Security . | . . . . . Squads Dispatched 1 | . . . . 1 Investigation . | . . . . . Extermination . | . . . . . Reinforcement 1 | . . . . 1 Assault . | . . . . . Garrison . | . . . . . Intercept . | . . . . . Searches Triggered . | . . . . . Construction Impeded . | . . . . . Haulers Reinforced . | . . . . . Active Scanning Responses . | . . . . . Cargo Convoy Interrupts . | . . . . . Stealth | -11 -10 -9 -9 -8 --------- Run | Yrd Mat Mat Min Mat Distress Signals . | . . . . . Communications Jammed . | . . . . . Distress Signals . | . . . . . Times Spotted 55 | . 9 17 17 12 Peak Tracking Total 12 | . 5 5 12 8 Tactical Retreats 1 | . . 1 . . Traps | -11 -10 -9 -9 -8 ------- Run | Yrd Mat Mat Min Mat Traps Triggered . | . . . . . Indirectly . | . . . . . Trap Hack Attempts . | . . . . . Triggered . | . . . . . Disarmed . | . . . . . Reprogrammed . | . . . . . Reused . | . . . . . Traps Extracted . | . . . . . Installed . | . . . . . Triggered . | . . . . . Machines | -11 -10 -9 -9 -8 ---------- Run | Yrd Mat Mat Min Mat Machines Disabled 5 | . 3 . 1 1 Max in Single Turn 2 | . 2 . . 1 Machines Repaired . | . . . . . Machines Dismantled . | . . . . . Machines Sabotaged . | . . . . . Overloaded Fab Kills . | . . . . . Hacking | -11 -10 -9 -9 -8 --------- Run | Yrd Mat Mat Min Mat Machines Accessed 6 | . 4 . . 2 Terminals 3 | . 2 . . 1 Fabricators . | . . . . . Repair Stations 1 | . . . . 1 Recycling Units 2 | . 2 . . . Scanalyzers . | . . . . . Garrison Access . | . . . . . Total Hacks 10 | . 6 . . 4 Successful 10 | . 6 . . 4 Failed . | . . . . . Catastrophic . | . . . . . Database Lockouts . | . . . . . Manual . | . . . . . Terminals 5 | . 3 . . 2 Fabricators . | . . . . . Repair Stations 2 | . . . . 2 Recycling Units 3 | . 3 . . . Scanalyzers . | . . . . . Garrison Access . | . . . . . Terminal Hacks 5 | . 3 . . 2 Emergency Access Points 1 | . 1 . . . Alert Level 1 | . 1 . . . Locate Traps 1 | . . . . 1 Dispatch Records 1 | . . . . 1 Hauler Manifests 1 | . 1 . . . Fabricator Hacks . | . . . . . Repair Station Hacks 2 | . . . . 2 Scan Component 1 | . . . . 1 Repair 1 | . . . . 1 Recycling Unit Hacks 3 | . 3 . . . Report Inventory 2 | . 2 . . . Retrieve Components 1 | . 1 . . . Scanalyzer . | . . . . . Garrison Access Hacks . | . . . . . Unauthorized Hacks . | . . . . . Terminals . | . . . . . Fabricators . | . . . . . Repair Stations . | . . . . . Recycling Units . | . . . . . Scanalyzers . | . . . . . Garrison Access . | . . . . . Data Cores Recovered . | . . . . . Used . | . . . . . Hacking Detections 5 | . 3 . . 2 Full Trace Events . | . . . . . Feedback Events . | . . . . . Feedback Blocked . | . . . . . Robot Schematics Acquired . | . . . . . Robots Built . | . . . . . Authchips . | . . . . . Time . | . . . . . Total Robot Build Rating . | . . . . . Part Schematics Acquired . | . . . . . Parts Built . | . . . . . Authchips . | . . . . . Time . | . . . . . Total Part Build Rating . | . . . . . Parts Repaired 1 | . . . . 1 Time 32 | . . . . 32 Parts Recycled . | . . . . . Recycled Matter . | . . . . . Retrieved Matter . | . . . . . Retrieved Components 3 | . 3 . . . Parts Scanalyzed . | . . . . . Part Schematics Acquired . | . . . . . Parts Damaged . | . . . . . Bothacking | -11 -10 -9 -9 -8 ------------ Run | Yrd Mat Mat Min Mat Used RIF Installer . | . . . . . Robots Hacked . | . . . . . Non-combat . | . . . . . Combat . | . . . . . Robot Hacks Applied . | . . . . . Relay Couplers Released . | . . . . . Fabnet Peak Effective % . | . . . . . Robots Rewired . | . . . . . Allies Hacked . | . . . . . Hacks Repelled . | . . . . . Allies | -11 -10 -9 -9 -8 -------- Run | Yrd Mat Mat Min Mat Total Allies 1 | . . . 1 . Largest Group 1 | . . . 1 . Highest-Rated Group 31 | . . . 31 . Highest-Rated Ally 31 | . . . 31 . Total Orders . | . . . . . Ally Attacks 6 | . . . 6 . Total Damage 101 | . . . 101 . Kills 1 | . . . 1 . Allies Corrupted . | . . . . . Allies Melted . | . . . . . Intel | -11 -10 -9 -9 -8 ------- Run | Yrd Mat Mat Min Mat Robot Analysis Total . | . . . . . Derelict Logs Recovered 1 | . . . 1 . Drone Launches . | . . . . . Drone Recoveries . | . . . . . Exploration | -11 -10 -9 -9 -8 ------------- Run | Yrd Mat Mat Min Mat Turns Passed 1778 | 87 247 902 244 298 Spaces Moved 1069 | 49 196 455 196 173 Core 102 | 7 . . 29 66 Treads . | . . . . . Legs . | . . . . . Wheels 491 | 42 196 146 . 107 Hover . | . . . . . Flight 476 | . . 309 167 . Fastest Speed 40 | 50 100 100 40 50 Average Speed 126 | 93 100 161 107 95 Slowest Speed 365 | 100 100 365 200 150 Overloaded Moves . | . . . . . Propulsion Burnouts . | . . . . . Robots Hopped . | . . . . . Cave-ins Triggered . | . . . . . Exploration Rate (%) 29 | 3 43 34 50 19 Regions Visited 4 Branch Regions 1 Pre-discovered Areas . | . . . . . Known Exits Taken . | . . . . . Unknown Exits Taken 4 | 1 1 1 1 . Scrap Searched . | . . . . . Spaces Dug . | . . . . . Terrain Destroyed 81 | . 53 28 . . Melee . | . . . . . Projectile . | . . . . . AOE 81 | . 53 28 . . Terrain Rammed . | . . . . . Walls Destroyed . | . . . . . Machines Disabled . | . . . . . Actions | -11 -10 -9 -9 -8 --------- Run | Yrd Mat Mat Min Mat Total 1286 | 72 224 536 208 246 Wait 22 | . . . . 22 Move 1065 | 48 195 454 195 173 Hop . | . . . . . Pick Up 30 | 8 8 7 . 7 Fast Attach 13 | . . 12 . 1 Attach 18 | 7 . 3 . 8 Detach . | . . . . . Swap 8 | . 3 4 . 1 Drop 16 | . 2 13 1 . Fire 49 | 9 16 24 . . Melee 65 | . . 19 12 34 Ram . | . . . . . Kick . | . . . . . Crush . | . . . . . Escape Stasis . | . . . . . Rewire . | . . . . . Trap . | . . . . . Miscellaneous . | . . . . . Route ------- -11/Scrapyard -10/Materials -9/Materials (discovered 2 exits: [*Min] / [*Sto]) -9/Mines -8/Materials History --------- Turn | Location | Event 42 | -11/Scrapyard | Discovered new exit (range 15) 88 | -11/Scrapyard | Entered Materials 269 | -10/Materials | Discovered new exit (range 13) 303 | -10/Materials | Build established: Mutant 335 | -10/Materials | Entered another Materials area 335 | -9/Materials | Evolved 2 slots: Utility x1, Weapon x1 460 | -9/Materials | Discovered new exit (range 4) 1102 | -9/Materials | Discovered new exit (range 15) 1237 | -9/Materials | Entered Mines 1247 | -9/Mines | Learned Materials terminal intel 1302 | -9/Mines | Received a Mining Laser from a helpful Derelict 1414 | -9/Mines | Assembled infested the area 1463 | -9/Mines | Core integrity fell below 50% 1475 | -9/Mines | Discovered new exit (range 10) 1481 | -9/Mines | Entered Materials 1481 | -8/Materials | Evolved 2 slots: Propulsion x1, Utility x1 1482 | -8/Materials | Loaded intel: 11 terminal locations 1495 | -8/Materials | Lost 5 parts (1p2n1u1w) 1586 | -8/Materials | Repaired Hvy. Hammer 1743 | -8/Materials | Core integrity fell below 50% 1753 | -8/Materials | Core integrity fell below 20% 1779 | -8/Materials | Destroyed by G-47 Trooper with Particle Gun Last Messages --------------- S-10 Pest destroyed. Hvy. Hammer destroyed. G-50 Soldier knocked back. Imp. Heat Sink destroyed. G-50 Soldier suffers critical hit (Smash). Destroyed Carbon-fiber Leg. G-50 Soldier system corrupted by crushing effect. G-50 Soldier system terminally corrupted. Hvy. Laser fried. Lgt. Angular Momentum Engine fried. Carbon-fiber Leg fried. Hvy. Hammer destroyed. Acquired Scythe. Y-45 Defender destroyed. Acquired Lgt. Armor Plating. Acquired Datajack. S-10 Pest destroyed. G-47 Trooper Aluminum Leg severed. R-06 Scavenger collects Aluminum Leg. Map ----- +----------------------------------------------------+ | ?????????????????????????????????????????????????? | | ?????????????????????????????????????????????????? | | ?????????????????????????????????????????????????? | | ?????????????????????????????????????????????????? | | ?????????????????????????????????????????????????? | | ?????????????????????????????????????????????????? | | ?????????????????????????????????????????????????? | | ?????????????????????????????????????????????????? | | ?????????????????????????????????????????????????? | | ?????????????????????????????????????????????????? | | ?????????????????????????????????????????????????? | | ?????????????????????????????????????????????????? | | ?????????????????????????????????????????????????? | | ?????????????????????????????????????????????????? | | ?????????????????????????????????????????????????? | | ?????????????????????????????????????????????????? | | ?????????????????????????????????????????????????? | | ?????????????????????????????????????????????????? | | ?????????????????????????????????????????????????? | | ?????????????????#####???????????????????????????? | | ????????????????##!!!!##?????????????????????????? | | ????????????????#! !#########????????????????? | | ????????????????? ## +??????##########? | | ??????????????##### ## """ #??????# #? | | ??????????????#[[ # """ #??????# #? | | ??????????????#[[ = #@""" #? ????# #? | | ??????????????#!! !%!%g r #? ????# % ## | | ??????????????#!! =* g# #? ????# ## | | ??????????????#]] ########? #???# ## | | ??????????????#]] ###g###???????? #???# ## | | ??????????????###???# #?????????? #???# ## | | ????????????????????# #?????###?# #???# ## | | ????????????????????# #######T### #???#####+##### | | ????????????????????# #??????# | | ?????????????????#### ^ [ ######## % ! = | | ?????????????????+ T^ """" % %* | | ?????????????????# ^ """" ####/#########! | | ?????????????????# "%"" # #?????# | | ?????????????????+ % # #?????# | | ?????????????????#### # #?????# | | ??????????????????#"" """" # #?????# | | ??????????????????#"T """" # #?????# | | ??????????????????#"" ! """" # #?????# | | ??????????????????### ! %[ #+######????### | | ???????????????# % #?????"""?# | | ??????????????# # ######+##### #?????"T"?# " | | ?????????????????#????????????# #?????????# " | | ??????????????????????????????# #???????# " | | ??????????????????????????????# +???????# | | ??????????????????????????????# #???????# | +----------------------------------------------------+ Best States ------------- Heat Dissipation 45 Energy Generation 14 Energy Capacity 265 Matter Stores 300 Matter Capacity 300 Sight Range 16 Terrain Scan Density 10 Armor Coverage 150 Evasion (%) 50 Melee Accuracy 10 Salvage Targeting 1 Item Schematics ----------------- None Robot Schematics ------------------ None Fabricated ------------ Nothing Alien Tech Used ----------------- None Achievements -------------- None Challenges ------------ None Game ------ Seed NullSapperAirjet Manual? 0 Play Time 00:25:54 Cumulative 8.4 hours Start 2024.04.21 @ 20:31:49 End 2024.04.21 @ 20:56:03 Sessions 1 Manual Loads 0 Difficulty Rogue Special Mode None Game No. 12 Rogue 12 Adventurer 0 Explorer 0 Win Type - Total 0 Types 0/0/0/0/0/0/0/0/0 Lore% 16 Gallery% 17 Achievement% 16 Wizard Run 0 Options --------- Layout 1 ASCII 0 Keyboard 0 Movement Mouse Keybinds 0 Fullscreen 1 Font 24/Smallcaps Map View 50x40 Zoom Use 0% Tactical HUD 0 Map Filters NONE Filters NONE Steam 1 RUN: 57d76cfc-f205-48a2-a6c6-18ae7d2438ce